Workbook

Sheet Fonctionnement - A LIRE
G2: Classification 5 quilles Ligue Hauts de France
H3: Règles de fonctionnement
A4: Objectif :
A5: En début de saison 2008-2009, j'avais annoncé la réforme de la classification 5 quilles dans la ligue NPDC pour distinguer les catégories N1 et R1.
A6: Les objectifs de cette réforme étaient, et restent toujours, de limiter les différences trop importantes de niveaux par catégories, d'encourager la compétition et de favoriser la progression..
A8: Limiter les écarts de niveaux :
A9: La distinction des catégories N1 et R1 empêche les joueurs N1 de disputer les épreuves R1, donc elle permet de laisser aux joueurs de niveau plus modeste de disputer leur chance dans leur catégorie.
A10: Encourager la compétition :
A11: Conséquence logique de la première mesure, cet objectif sera également atteint en fixant un nombre minimum de matchs disputés pour permettre l'évaluation des joueurs
A12: ainsi qu'en valorisant le titre de champion de ligue R1 par la montée en N1.
A13: Favoriser la progression :
A14: Comme dans les autres modes de jeu, un joueur peut prétendre jouer dans la catégorie supérieure, dans ce cas, à lui de confirmer son niveau en se maintenant dans la catégorie supérieure.
A16: Fonctionnement de la classification :
A17: Evaluation glissante sur 2 saisons des résultats individuels obtenus par les joueurs dans leur catégorie. Tous les matchs individuels officiels sont pris en compte.
A18: Nombre minimum de matchs effectués pour évaluation : 10 matchs dans une même catégorie sur les 2 dernières saisons.
A19: Si un joueur n'a pas effectué 10 matchs sur les 2 dernières saisons, l'évaluation de ses résultats n'est pas faite et sa classification reste inchangée pour l'année suivante.
A20: Si un joueur ne joue pas pendant une ou plusieurs saisons, il reprend dans la catégorie qui était la sienne à son arrêt.
A21: Seuls les résultats de son année de reprise sont pris en compte.(saison précédente 0 matchs + nb matchs effectués l'année de reprise)
A23: Critères de descente en catégorie R1 :
A24: Pourcentage de matchs gagnés < 33% et pourcentage de sets gagnés < 33% (tous les matchs individuels sont pris en compte)
A26: Critères de montée en catégorie N1
A27: Se situer dans au moins un des 3 cas ci-dessous :
A28: - Champion de ligue ou vice-champion de ligue de la saison en cours.
A29: - Pourcentage de matchs gagnés > 64,99% et de sets gagnés > 59,99% (tous les matchs individuels sont pris en compte)
A30: - Avoir confirmé en N1, c'est-à-dire avoir disputé au moins 10 matchs individuels en N1 sur les 2 dernières saisons et avoir un nombre de matchs gagnés > 32,99% ou un nombre de sets gagnés > 32,99%
A32: Nouveau joueur :
A33: Si joueur classé N2 ou mieux à la bande ou au 3 bandes ==> Classification de départ en 5 quilles N1 obligatoire.
A36: Jean-charles Wallart
A37: Responsable format 5 quilles Ligue Hauts de France
A38: wallartjc@gmail.com

Sheet Classification
A1: Nom | B1: Prénom | C1: Licence | D1: Club | E1: Nom & Prénom | F1: CD | G1: Saison 2008 2009 | H1: Evol. | I1: Saison 2009 2010 | J1: Evol. | K1: Saison 2010 2011 | L1: Evol. | M1: Saison 2011 2012 | N1: Evol. | O1: Saison 2012 2013 | P1: Evol. | Q1: Saison 2013 2014 | R1: Evol. | S1: Saison 2014 2015 | T1: Evol. | U1: Saison 2015 2016 | V1: Evol. | W1: Saison 2016 2017 | X1: Evol. | Y1: Saison 2017 2018 | Z1: Evol. | AA1: Saison 2018 2019 | AB1: Evol. | AC1: Saison 2019 2020 | AD1: Evol. | AE1: Saison 2020 2021 | AF1: Evol. | AG1: Saison 2021 2022 | AH1: Evol. | AI1: Saison 2022 2023 | AJ1: Dernier classement connu
A2: ALAZARD | B2: Philippe | C2: 012406E | D2: CREPY EN VALOIS | E2: =A2 & " " & B2 -> ALAZARD Philippe | F2: CD60 | AA2: R1 | AB2: = | AC2: R1 | AD2: ▲ | AE2: N1 | AF2: = | AG2: N1 | AH2: = | AI2: N1 | AJ2: 13ème Qualifications CD60 N1 2021-2022 / 71ème ranking national
A3: AIT BRAHIM | B3: Abdellaziz | C3: 173899W | D3: MOREUIL | E3: AIT BRAHIM Abdellaziz | F3: CD80 | AG3: R1 | AH3: = | AI3: R1 | AJ3: Qualifications CD80
A4: ALDEGUER | B4: Lionel | C4: 148619S | D4: GRANDE SYNTHE | E4: ALDEGUER Lionel | F4: CD59 | Q4: R1 | R4: ▲ | S4: N1 | T4: = | U4: N1 | V4: ▼ | W4: R1 | X4: ▲ | Y4: N1 | Z4: = | AA4: N1 | AB4: = | AC4: N1 | AD4: = | AE4: N1 | AF4: = | AG4: N1 np | AH4: = | AI4: N1 | AJ4: 12ème qualifications CD59 N1 2018-2019 - 82ème classement ranking national 2019-2020
A5: ALEXANDRE | B5: Michel | C5: 120146A | D5: SENLIS | E5: ALEXANDRE Michel | F5: CD60 | W5: N1 | X5: = | Y5: N1 | Z5: = | AA5: N1 np | AB5: = | AC5: N1 np | AD5: = | AE5: N1 | AF5: = | AG5: N1 np | AH5: = | AI5: N1 | AJ5: 45ème Classement National 2017 - 2018
A6: ANSEL | B6: Philippe | C6: 017131X | D6: ESTAIRES | E6: ANSEL Philippe | F6: CD59 | AG6: N1 | AH6: = | AI6: N1 | AJ6: 12ème Qualifications CD59 N1 2021-2022
A7: AZRIA | B7: Aaron | C7: 164108D | D7: SENLIS | E7: AZRIA Aaron | F7: CD60 | AA7: R1 | AB7: = | AC7: R1 np | AD7: = | AE7: R1 | AF7: = | AG7: R1 | AH7: = | AI7: R1 | AJ7: 19ème Qualifications CD60 R1 2021-2022
A8: BABOLEIN | B8: Clément | C8: 168868C | D8: LA FERRE | E8: BABOLEIN Clément | F8: CD02 | AC8: R1 | AD8: = | AE8: R1 | AF8: = | AG8: R1 | AH8: = | AI8: R1 | AJ8: 3ème Finale CD02 R1 2021-2022
A9: BAHEUX | B9: David | C9: 107661V | D9: OUTREAU | E9: BAHEUX David | F9: CD62 | G9: N1 np | H9: = | I9: N1 np | J9: = | K9: N1 np | L9: = | M9: N1 np | N9: = | O9: N1 np | P9: = | Q9: N1 np | R9: = | S9: N1 np | T9: = | U9: N1 np | V9: = | W9: N1 np | X9: = | Y9: N1 np | Z9: = | AA9: N1 np | AB9: = | AC9: N1 np | AD9: = | AE9: N1 | AF9: = | AG9: N1 np | AH9: = | AI9: N1 | AJ9: 3ème 1/2 Finale district maritime N1 2007-2008 ou antérieur
A10: BARBE | B10: Logan | C10: 166321J | D10: SENLIS | E10: BARBE Logan | F10: CD60 | AG10: R1 | AH10: = | AI10: R1 | AJ10: 18ème Qualifications CD60 R1 2021-2022
A11: BARBE | B11: Philippe | C11: 137526M | D11: SENLIS | E11: BARBE Philippe | F11: CD60 | W11: N1 | X11: = | Y11: N1 | Z11: = | AA11: N1 | AB11: = | AC11: N1 | AD11: ▼ | AE11: R1 | AF11: = | AG11: R1 | AH11: = | AI11: R1 | AJ11: 4eme Finale Ligue R1 2021-2022 / 12eme Qualifications CD60 N1 / / 62ème ranking national
A12: BARKUT | B12: Volkan | C12: 161413Z | D12: GRANDE SYNTHE | E12: BARKUT Volkan | F12: CD59 | AG12: R1 | AH12: = | AI12: R1 | AJ12: 17ème Qualifications R1 CD59 2021-2022
A13: BARNO | B13: Cassandre | C13: 143081D | D13: DENAIN | E13: BARNO Cassandre | F13: CD59 | M13: R1 | N13: = | O13: R1 | P13: = | Q13: R1 np | R13: = | S13: R1 np | T13: = | U13: R1 np | V13: = | W13: R1 np | X13: = | Y13: R1 np | Z13: = | AA13: R2 np | AB13: = | AC13: R1 np | AD13: = | AE13: R1 | AF13: = | AG13: R1 np | AH13: = | AI13: R1 | AJ13: 5ème Finale Ligue R1 2012-2013
A14: BARTHON | B14: Aurélie | C14: 162822F | D14: SENLIS | E14: BARTHON Aurélie | F14: CD60 | Y14: R1 | Z14: = | AA14: R1 np | AB14: = | AC14: R1 | AD14: = | AE14: R1 | AF14: = | AG14: R1 | AH14: = | AI14: R1 | AJ14: 10ème Qualifications CD60 R1 2021-2022
A15: BASTENIER | B15: Jean | C15: 017360S | D15: RONCHIN | E15: BASTENIER Jean | F15: CD59 | G15: R1 | H15: ▲ | I15: N1 | J15: = | K15: N1 | L15: = | M15: N1 np | N15: = | O15: N1 np | P15: = | Q15: N1 np | R15: = | S15: N1 np | T15: = | U15: N1 np | V15: = | W15: N1 np | X15: = | Y15: N1 np | Z15: = | AA15: N1 np | AB15: = | AC15: N1 np | AD15: = | AE15: N1 | AF15: = | AG15: N1 | AH15: = | AI15: N1 | AJ15: 21ème Qualifications CD59 N1 2021-2022
A16: BATTEUX | B16: Daniel | C16: 021005X | D16: PONT DE METZ | E16: BATTEUX Daniel | F16: CD80 | W16: N1 | X16: = | Y16: N1 | Z16: = | AA16: N1 | AB16: = | AC16: N1 np | AD16: = | AE16: N1 | AF16: = | AG16: N1 | AH16: = | AI16: N1 | AJ16: 11ème Qualifications CD80 N1 2021-2022
A17: BAUER | B17: Henri | C17: 112088C | D17: FRIVILLE | E17: BAUER Henri | F17: CD80 | AA17: R1 | AB17: = | AC17: R1 np | AD17: = | AE17: R1 | AF17: = | AG17: R1 np | AH17: = | AI17: R1 | AJ17: NC 5Q - R1 Bande ==> R1 5Q
A18: BEGHIN | B18: Benjamin | C18: 145779X | D18: ANNOEULLIN | E18: BEGHIN Benjamin | F18: CD59 | W18: R1 | X18: = | Y18: R1 | Z18: = | AA18: R2 np | AB18: = | AC18: R1 np | AD18: = | AE18: R1 | AF18: = | AG18: R1 | AH18: ▲ | AI18: N1 | AJ18: 1er Finale R1 CD59 2021-2022
A19: BEGHIN | B19: Nicolas | C19: 148048X | D19: ANNOEULLIN | E19: BEGHIN Nicolas | F19: CD59 | W19: R1 | X19: = | Y19: R1 | Z19: = | AA19: R1 | AB19: = | AC19: R1 | AD19: = | AE19: R1 | AF19: = | AG19: R1 | AH19: = | AI19: R1 | AJ19: 4ème Finale CD59 R1 2021-2022
A20: BEGUIN | B20: Jean-Luc | C20: 163765F | D20: ST POL SUR MER | E20: BEGUIN Jean-Luc | F20: CD59 | AA20: R2 | AB20: = | AC20: R1 | AD20: = | AE20: R1 | AF20: = | AG20: R1 np | AH20: = | AI20: R1 | AJ20: 13ème Qualifications CD59 R1 2019-2020
A21: BELLENS | B21: Antoine | C21: 159114A | D21: RONCHIN | E21: BELLENS Antoine | F21: CD59 | AG21: R1 | AH21: ▲ | AI21: N1 | AJ21: 1er Qualifications R1 CD59 2021-2022 / 115ème ranking national
A22: BELLET | B22: Pascal | C22: 159114A | D22: FRIVILLE | E22: BELLET Pascal | F22: CD80 | AG22: R1 np | AH22: = | AI22: R1 | AJ22: NC, R2 bande, R1 3B ==> R1 5Q
A23: BELLOC | B23: Adrien | C23: 154255T | D23: GRANDE SYNTHE | E23: BELLOC Adrien | F23: CD59 | S23: R1 | T23: = | U23: R1 np | V23: = | W23: R1 np | X23: = | Y23: R1 np | Z23: = | AA23: R2 np | AB23: = | AC23: R1 np | AD23: = | AE23: R1 | AF23: = | AG23: R1 np | AH23: = | AI23: R1 | AJ23: 14ème qualifications CD59 R1 2014-2015
A24: BENLAMLIH | B24: Abdelilah | C24: 165831B | D24: PONT DE METZ | E24: BENLAMLIH Abdelilah | F24: CD80 | AG24: R1 | AH24: = | AI24: R1 | AJ24: 8ème Qualifications CD80 R1 2021-2022
A25: BERRIER | B25: François | C25: 168347L | D25: DOUAI | E25: BERRIER François | F25: CD59 | AG25: R1 | AH25: = | AI25: R1 | AJ25: 21ème Qualifications R1 CD59 2021-2022
A26: BETTEFORT | B26: Clémence | C26: 153071G | D26: FRIVILLE | E26: BETTEFORT Clémence | F26: CD80 | Y26: R1 | Z26: = | AA26: R1 | AB26: = | AC26: R1 np | AD26: = | AE26: R1 | AF26: = | AG26: R1 | AH26: = | AI26: R1 | AJ26: 3eme finale CD80 Dames 2021-2022
A27: BETTEFORT | B27: Mickael | C27: 137459X | D27: FRIVILLE | E27: BETTEFORT Mickael | F27: CD80 | W27: R1 | X27: = | Y27: R1 | Z27: = | AA27: R1 | AB27: = | AC27: R1 np | AD27: = | AE27: R1 | AF27: = | AG27: R1 | AH27: = | AI27: R1 | AJ27: 6ème Qualifications CD80 R1 221-2022
A28: BETTEFORT | B28: Véronique | C28: 165660Q | D28: FRIVILLE | E28: BETTEFORT Véronique | F28: CD80 | AA28: R1 | AB28: = | AC28: R1 np | AD28: = | AE28: R1 | AF28: = | AG28: R1 | AH28: = | AI28: R1 | AJ28: 10ème Qualifications CD80 R1 221-2022 - 2eme finale CD80 Dames 2021-2022
A29: BLONDEL | B29: Jean | C29: 169087Q | D29: DENAIN | E29: BLONDEL Jean | F29: CD59 | AG29: R1 | AH29: = | AI29: R1 | AJ29: 13ème Qualifications R1 CD59 2021-2022
A30: BLONDEEL | B30: Bruno | C30: 131428Y | D30: OUTREAU | E30: BLONDEEL Bruno | F30: CD62 | M30: R1 | N30: = | O30: R1 | P30: = | Q30: R1 np | R30: = | S30: R1 | T30: = | U30: R1 | V30: = | W30: R1 | X30: ▲ | Y30: N1 np | Z30: = | AA30: N1 np | AB30: = | AC30: N1 np | AD30: = | AE30: N1 | AF30: = | AG30: N1 np | AH30: = | AI30: N1 | AJ30: 2ème Qualifications Maritime CD62 2016 2017
A31: BLONDEEL | B31: Firmin | C31: 133104K | D31: OUTREAU | E31: BLONDEEL Firmin | F31: CD62 | K31: R1 | L31: = | M31: R1 | N31: = | O31: R1 | P31: ▲ | Q31: N1 np | R31: = | S31: N1 | T31: = | U31: N1 | V31: = | W31: N1 np | X31: = | Y31: N1 np | Z31: = | AA31: N1 | AB31: = | AC31: N1 | AD31: = | AE31: N1 | AF31: = | AG31: N1 np | AH31: = | AI31: N1 | AJ31: 1er Qualifications CD62 N1 2019-2020
A32: BLOUIN | B32: Nicolas | C32: 147753B | D32: CHAMBLY | E32: BLOUIN Nicolas | F32: CD60 | Y32: R1 | Z32: = | AA32: R1 np | AB32: = | AC32: R1 np | AD32: = | AE32: R1 | AF32: = | AG32: R1 np | AH32: = | AI32: R1 | AJ32: 3ème Finale CD60 Juniors 2017 - 2018
A33: BOCQUET | B33: Jean-Luc | C33: 016577P | D33: BILLY MONTIGNY | E33: BOCQUET Jean-Luc | F33: CD62 | G33: N1 np | H33: = | I33: N1 np | J33: = | K33: N1 np | L33: = | M33: N1 np | N33: = | O33: N1 np | P33: = | Q33: N1 np | R33: = | S33: N1 np | T33: = | U33: N1 np | V33: = | W33: N1 np | X33: = | Y33: N1 np | Z33: = | AA33: N1 np | AB33: = | AC33: N1 np | AD33: = | AE33: N1 | AF33: = | AG33: N1 np | AH33: = | AI33: N1 | AJ33: 8ème Tournoi N1 Artois 2007-2008 ou antérieur
A34: BOLLINNE | B34: Simon | C34: 150356F | D34: GUIGNICOURT | E34: =A34 & " " & B34 -> BOLLINNE Simon | F34: CD02 | Y34: R1 | Z34: = | AA34: R1 np | AB34: = | AC34: R1 np | AD34: = | AE34: R1 | AF34: = | AG34: R1 np | AH34: = | AI34: R1 | AJ34: 5ème finale CD02 R1 2017 - 2018
A35: BONNEAU | B35: Benoît | C35: 112124M | D35: CREPY EN VALOIS | E35: BONNEAU Benoît | F35: CD60 | W35: N1 | X35: = | Y35: N1 | Z35: = | AA35: N1 | AB35: = | AC35: N1 | AD35: = | AE35: N1 | AF35: = | AG35: N1 np | AH35: = | AI35: N1 | AJ35: 4ème Qualifications CD60 2019-2020 - 105ème classement ranking national 2019-2020
A36: BOUBET | B36: Jean | C36: 121412S | D36: CUCQ | E36: BOUBET Jean | F36: CD62 | G36: R1 | H36: = | I36: R1 | J36: = | K36: R1 np | L36: = | M36: R1 np | N36: = | O36: R1 | P36: = | Q36: R1 | R36: = | S36: R1 np | T36: = | U36: R1 np | V36: = | W36: R1 | X36: ▲ | Y36: N1 | Z36: = | AA36: N1 np | AB36: = | AC36: N1 np | AD36: = | AE36: N1 | AF36: = | AG36: N1 np | AH36: = | AI36: N1 | AJ36: 4ème Qualifications CD62 N1 2017 - 2018
A37: BOUCHART | B37: Christophe | C37: 016693B | D37: GRANDE SYNTHE | E37: BOUCHART Christophe | F37: CD59 | M37: R1 | N37: = | O37: R1 np | P37: = | Q37: R1 np | R37: = | S37: R1 np | T37: = | U37: R1 np | V37: = | W37: R1 np | X37: = | Y37: R1 np | Z37: = | AA37: R2 np | AB37: = | AC37: R1 np | AD37: = | AE37: R1 | AF37: = | AG37: R1 np | AH37: = | AI37: R1 | AJ37: 9ème Qualifications CD59 R1 2011-2012
A38: BOUIGES | B38: Armelle | C38: 145645T | D38: SENLIS | E38: BOUIGES Armelle | F38: CD60 | W38: R1 | X38: = | Y38: R1 | Z38: = | AA38: R1 | AB38: = | AC38: R1 | AD38: = | AE38: R1 | AF38: = | AG38: R1 | AH38: = | AI38: R1 | AJ38: 9ème Qualifications CD60 R1 2021-2022
A39: BOUILLET | B39: Antoine | C39: 105367P | D39: VILLENEUVE D'ASCQ | E39: BOUILLET Antoine | F39: CD59 | G39: N1 np | H39: = | I39: N1 np | J39: = | K39: N1 np | L39: = | M39: N1 np | N39: = | O39: N1 np | P39: = | Q39: N1 np | R39: = | S39: N1 np | T39: = | U39: N1 np | V39: = | W39: N1 np | X39: = | Y39: N1 np | Z39: = | AA39: N1 np | AB39: = | AC39: N1 np | AD39: = | AE39: N1 | AF39: = | AG39: N1 np | AH39: = | AI39: N1 | AJ39: 4ème Finale district Flandre N1 2007-2008 ou antérieur
A40: BOULET | B40: Serge | C40: 130198Q | D40: FACHES-THUMESNIL | E40: BOULET Serge | F40: CD59 | G40: R1 | H40: = | I40: R1 np | J40: = | K40: R1 np | L40: = | M40: R1 np | N40: = | O40: R1 np | P40: = | Q40: R1 np | R40: = | S40: R1 np | T40: = | U40: R1 np | V40: = | W40: R1 np | X40: = | Y40: R1 np | Z40: = | AA40: R2 np | AB40: = | AC40: R1 np | AD40: = | AE40: R1 | AF40: = | AG40: R1 np | AH40: = | AI40: R1 | AJ40: 12ème Qualifications CD59 R1 2008-2009
A41: BOULINGUEZ | B41: Yves | C41: 134472A | D41: LA FERRE | E41: BOULINGUEZ Yves | F41: CD02 | W41: R1 | X41: = | Y41: R1 | Z41: = | AA41: R1 | AB41: = | AC41: R1 | AD41: = | AE41: R1 | AF41: = | AG41: R1 np | AH41: = | AI41: R1 | AJ41: 4ème Qualifications CD02 R1 2019-2020
A42: BOURGOGNE | B42: Claude | C42: 020831F | D42: GOUVIEUX | E42: BOURGOGNE Claude | F42: CD60 | W42: N1 | X42: = | Y42: N1 | Z42: = | AA42: N1 | AB42: ▼ | AC42: R1 | AD42: ▲ | AE42: N1 | AF42: = | AG42: N1 np | AH42: = | AI42: N1 | AJ42: 2ème Qualifications CD60 R1 2019-2020
A43: BOUTEILLER | B43: Francis | C43: 102464Y | D43: MERU | E43: BOUTEILLER Francis | F43: CD60 | Y43: N1 | Z43: = | AA43: N1 np | AB43: = | AC43: N1 np | AD43: = | AE43: N1 | AF43: = | AG43: N1 np | AH43: = | AI43: N1 | AJ43: 11ème Qualifications CD60 2017 - 2018
A44: BOUTON | B44: Gérard | C44: 146418M | D44: BEAUVAIS | E44: BOUTON Gérard | F44: CD60 | AG44: R1 | AH44: = | AI44: R1 | AJ44: 8ème Qualifications CD60 R1 2021-2022
A45: BOZON | B45: Robert | C45: 165891R | D45: CREPY EN VALOIS | E45: BOZON Robert | F45: CD60 | AA45: R1 | AB45: = | AC45: R1 | AD45: = | AE45: R1 | AF45: = | AG45: R1 | AH45: = | AI45: R1 | AJ45: 3eme Finale R1 CD60 2021-2022 / 103ème ranking national
A46: BROUTIER | B46: Bertrand | C46: 101241X | D46: CUCQ | E46: BROUTIER Bertrand | F46: CD62 | AA46: R1 | AB46: = | AC46: R1 np | AD46: = | AE46: R1 | AF46: = | AG46: R1 np | AH46: = | AI46: R1 | AJ46: 11ème Qualifications CD62 N1 2018 - 2019
A47: BRUYERE | B47: Michel | C47: 114150K | D47: VILLENEUVE D'ASCQ | E47: BRUYERE Michel | F47: CD59 | G47: R1 | H47: = | I47: R1 np | J47: = | K47: R1 np | L47: = | M47: R1 np | N47: = | O47: R1 np | P47: = | Q47: R1 np | R47: = | S47: R1 np | T47: = | U47: R1 np | V47: = | W47: R1 np | X47: = | Y47: R1 np | Z47: = | AA47: R2 np | AB47: = | AC47: R1 np | AD47: = | AE47: R1 | AF47: = | AG47: R1 np | AH47: = | AI47: R1 | AJ47: 10ème Qualifications CD59 R1 2008-2009
A48: BUONDELMONTE | B48: Nazario | C48: 017134A | D48: DENAIN | E48: BUONDELMONTE Nazario | F48: CD59 | K48: R1 | L48: = | M48: R1 np | N48: = | O48: R1 np | P48: = | Q48: R1 np | R48: = | S48: R1 np | T48: = | U48: R1 np | V48: = | W48: R1 np | X48: = | Y48: R1 np | Z48: = | AA48: R2 np | AB48: = | AC48: R1 np | AD48: = | AE48: R1 | AF48: = | AG48: R1 np | AH48: = | AI48: R1 | AJ48: 10ème Qualifications CD59 R1 2010-2011
A49: BURY | B49: Alain | C49: 016732O | D49: CAMBRAI | E49: BURY Alain | F49: CD59 | M49: N1 | N49: = | O49: N1 np | P49: = | Q49: N1 np | R49: = | S49: N1 np | T49: = | U49: N1 np | V49: = | W49: N1 np | X49: = | Y49: N1 np | Z49: = | AA49: N1 np | AB49: = | AC49: N1 np | AD49: = | AE49: N1 | AF49: = | AG49: N1 np | AH49: = | AI49: N1 | AJ49: 42ème T3 National 2011-2012
A50: BUTTI | B50: Bertrand | C50: 155687A | D50: SAINT QUENTIN | E50: BUTTI Bertrand | F50: CD02 | W50: R1 | X50: = | Y50: R1 | Z50: = | AA50: R1 | AB50: = | AC50: R1 | AD50: ▲ | AE50: N1 | AF50: = | AG50: N1 | AH50: = | AI50: N1 | AJ50: 3ème Finale CD02 N1 2021-2022
A51: BUTTI | B51: EmIlie | C51: 157680R | D51: SAINT QUENTIN | E51: BUTTI EmIlie | F51: CD02 | W51: R1 | X51: = | Y51: R1 np | Z51: = | AA51: R1 np | AB51: = | AC51: R1 np | AD51: = | AE51: R1 | AF51: = | AG51: R1 | AH51: = | AI51: R1 | AJ51: 4ème Finale CD02 R1 2021-2022
A52: CABOCHE | B52: Marcel | C52: 017273J | D52: BILLY MONTIGNY | E52: CABOCHE Marcel | F52: CD62 | G52: N1 np | H52: = | I52: N1 np | J52: = | K52: N1 np | L52: = | M52: N1 np | N52: = | O52: N1 np | P52: = | Q52: N1 np | R52: = | S52: N1 np | T52: = | U52: N1 np | V52: = | W52: N1 np | X52: = | Y52: N1 np | Z52: = | AA52: N1 np | AB52: = | AC52: N1 np | AD52: = | AE52: N1 | AF52: = | AG52: N1 np | AH52: = | AI52: N1 | AJ52: 3ème Tournoi N1 Artois 2007-2008 ou antérieur
A53: CABUZEL | B53: Denis | C53: 021206Q | D53: PONT DE METZ | E53: CABUZEL Denis | F53: CD80 | W53: R1 | X53: ▲ | Y53: N1 | Z53: ▼ | AA53: R1 | AB53: = | AC53: R1 np | AD53: = | AE53: R1 | AF53: = | AG53: R1 np | AH53: = | AI53: R1 | AJ53: 8ème Qualifications CD80 R1 2018-2019
A54: CAPLIEZ | B54: Bernard | C54: 143595X | D54: CUCQ | E54: CAPLIEZ Bernard | F54: CD62 | Q54: R1 | R54: = | S54: R1 | T54: = | U54: R1 | V54: = | W54: R1 np | X54: = | Y54: R1 | Z54: ▲ | AA54: N1 | AB54: = | AC54: N1 | AD54: = | AE54: N1 | AF54: = | AG54: N1 | AH54: = | AI54: N1 | AJ54: 10ème Qualifications CD62 N1 2021-2022
A55: CARON | B55: Didier | C55: 164330V | D55: FRIVILLE | E55: CARON Didier | F55: CD80 | AG55: R1 np | AH55: = | AI55: R1 | AJ55: NC, R1 Bande, N3 3B ==> R1 5Q
A56: CARPENTIER | B56: Yohanne | C56: 016914O | D56: ANNOEULLIN | E56: CARPENTIER Yohanne | F56: CD59 | G56: R1 | H56: ▲ | I56: N1 | J56: = | K56: N1 | L56: = | M56: N1 | N56: = | O56: N1 np | P56: = | Q56: N1 np | R56: = | S56: N1 np | T56: = | U56: N1 np | V56: = | W56: N1 np | X56: = | Y56: N1 np | Z56: = | AA56: N1 np | AB56: = | AC56: N1 np | AD56: = | AE56: N1 | AF56: = | AG56: N1 np | AH56: = | AI56: N1 | AJ56: 37ème qualifications ligue N1 2013-2014
A57: CARRU | B57: Bruno | C57: 016650K | D57: DUNKERQUE | E57: CARRU Bruno | F57: CD59 | G57: R1 np | H57: = | I57: R1 | J57: = | K57: R1 np | L57: = | M57: R1 np | N57: = | O57: R1 np | P57: = | Q57: R1 np | R57: = | S57: R1 np | T57: = | U57: R1 np | V57: = | W57: R1 np | X57: = | Y57: R1 np | Z57: = | AA57: R2 np | AB57: = | AC57: R1 np | AD57: = | AE57: R1 | AF57: = | AG57: R1 np | AH57: = | AI57: R1 | AJ57: 17ème Qualifications CD59 R1 2009-2010
A58: CARTIERE | B58: André | C58: 117749V | D58: CUCQ | E58: CARTIERE André | F58: CD62 | G58: R1 | H58: = | I58: R1 | J58: = | K58: R1 np | L58: = | M58: R1 | N58: = | O58: R1 | P58: = | Q58: R1 | R58: = | S58: R1 | T58: = | U58: R1 | V58: = | W58: R1 | X58: = | Y58: R1 | Z58: = | AA58: R1 | AB58: = | AC58: R1 | AD58: ▲ | AE58: N1 | AF58: = | AG58: N1 | AH58: ▼ | AI58: R1 | AJ58: 12ème Qualifications CD62 N1 2021-2022
A59: CASTRIGNANO | B59: Antonio | C59: 020660Q | D59: GOUVIEUX | E59: CASTRIGNANO Antonio | F59: CD60 | AD59: = | AF59: = | AG59: R1 np | AH59: = | AI59: R1 | AJ59: NC
A60: CASARES | B60: Jacques | C60: 016867T | D60: CARVIN | E60: CASARES Jacques | F60: CD62 | G60: N1 np | H60: = | I60: N1 np | J60: = | K60: N1 np | L60: = | M60: N1 np | N60: = | O60: N1 np | P60: = | Q60: N1 np | R60: = | S60: N1 np | T60: = | U60: N1 np | V60: = | W60: N1 np | X60: = | Y60: N1 np | Z60: = | AA60: N1 np | AB60: = | AC60: N1 np | AD60: = | AE60: N1 | AF60: = | AG60: N1 np | AH60: = | AI60: N1 | AJ60: 2ème Tournoi N1 Artois 2007-2008 ou antérieur
A61: CASIER | B61: Philippe | C61: 134564Q | D61: SAINT QUENTIN | E61: CASIER Philippe | F61: CD02 | AC61: R1 | AD61: = | AE61: R1 | AF61: = | AG61: R1 | AH61: = | AI61: R1 | AJ61: 6ème Finale CD02 R1 2021-2022
A62: CAUX | B62: Grégory | C62: 147265W | D62: ANNOEULLIN | E62: CAUX Grégory | F62: CD59 | O62: N1 | P62: = | Q62: N1 | R62: = | S62: N1 | T62: = | U62: N1 np | V62: = | W62: N1 np | X62: = | Y62: N1 np | Z62: = | AA62: N1 np | AB62: = | AC62: N1 np | AD62: = | AE62: N1 | AF62: = | AG62: N1 np | AH62: = | AI62: N1 | AJ62: 11ème qualifications ligue 2014-2015
A63: CAUX | B63: Patrick | C63: 129454A | D63: FRIVILLE | E63: CAUX Patrick | F63: CD80 | Y63: R1 | Z63: = | AA63: R1 | AB63: = | AC63: R1 np | AD63: = | AE63: R1 | AF63: = | AG63: R1 np | AH63: = | AI63: R1 | AJ63: NC - Classé N3 Bande et 3B
A64: CHAIGNE | B64: Gilles | C64: 165846S | D64: PONT DE METZ | E64: CHAIGNE Gilles | F64: CD80 | AA64: R1 | AB64: = | AC64: R1 np | AD64: = | AE64: R1 | AF64: = | AG64: R1 np | AH64: = | AI64: R1 | AJ64: 5ème Finale Ligue R1 2018-2019
A65: CHARLES | B65: Dominique | C65: 135646E | D65: CREPY EN VALOIS | E65: CHARLES Dominique | F65: CD60 | W65: N1 | X65: = | Y65: N1 | Z65: = | AA65: N1 | AB65: = | AC65: N1 | AD65: ▼ | AE65: R1 | AF65: = | AG65: R1 | AH65: = | AI65: R1 | AJ65: 13ème Qualifications CD60 R1 2021-2022 / 9ème Qualifications CD60 N1 2021-2022 / 70ème ranking national
A66: CHENAL | B66: Gérard | C66: 142320W | D66: CHAMBLY | E66: =A66 & " " & B66 -> CHENAL Gérard | F66: CD60 | W66: R1 | X66: = | Y66: R1 np | Z66: = | AA66: R1 | AB66: = | AC66: R1 | AD66: = | AE66: R1 | AF66: = | AG66: R1 | AH66: = | AI66: R1 | AJ66: 11ème Qualifications CD60 R1 2021-2022
A67: CHEREAU | B67: Florian | C67: 127112Y | D67: LAON | E67: CHEREAU Florian | F67: CD02 | W67: N1 np | X67: = | Y67: N1 np | Z67: = | AA67: N1 np | AB67: = | AC67: N1 np | AD67: = | AE67: N1 | AF67: = | AG67: N1 np | AH67: = | AI67: N1 | AJ67: 6ème CD02 N1 2015 - 2016
A68: CHOUX | B68: André | C68: 112123L | D68: GUIGNICOURT | E68: CHOUX André | F68: CD02 | W68: R1 | X68: = | Y68: R1 | Z68: = | AA68: R1 np | AB68: = | AC68: R1 np | AD68: = | AE68: R1 | AF68: = | AG68: R1 np | AH68: = | AI68: R1 | AJ68: 10ème Qualifications CD02 R1 2017 - 2018
A69: CLAIRET | B69: Jean-Claude | C69: 016545J | D69: COURRIERES | E69: CLAIRET Jean-Claude | F69: CD62 | M69: R1 | N69: = | O69: R1 np | P69: = | Q69: R1 np | R69: = | S69: R1 np | T69: = | U69: R1 np | V69: = | W69: R1 np | X69: = | Y69: R1 np | Z69: = | AA69: R1 np | AB69: = | AC69: R1 np | AD69: = | AE69: R1 | AF69: = | AG69: R1 np | AH69: = | AI69: R1 | AJ69: xxème Qualifications CD62 R1 Artois 2011-2012
A70: CLAIRET | B70: Jean-François | C70: 017331P | D70: DIVION | E70: CLAIRET Jean-François | F70: CD62 | G70: R1 | H70: = | I70: R1 np | J70: = | K70: R1 np | L70: = | M70: R1 np | N70: = | O70: R1 | P70: = | Q70: R1 np | R70: = | S70: R1 np | T70: = | U70: R1 np | V70: = | W70: R1 np | X70: = | Y70: R1 np | Z70: = | AA70: R1 np | AB70: = | AC70: R1 np | AD70: = | AE70: R1 | AF70: = | AG70: R1 np | AH70: = | AI70: R1 | AJ70: xxème Qualifications CD62 R1 Artois 2012-2013
A71: CLYNCKE | B71: Jean-Jacques | C71: 017038I | D71: ANNOEULLIN | E71: CLYNCKE Jean-Jacques | F71: CD59 | G71: N1 | H71: = | I71: N1 | J71: = | K71: N1 | L71: = | M71: N1 | N71: = | O71: N1 | P71: = | Q71: N1 | R71: = | S71: N1 | T71: = | U71: N1 | V71: = | W71: N1 | X71: = | Y71: N1 | Z71: = | AA71: N1 | AB71: = | AC71: N1 | AD71: ▼ | AE71: R1 | AF71: = | AG71: R1 | AH71: = | AI71: R1 | AJ71: 6eme Finale CD59 N1 2021-2022
A72: COFFRE | B72: Frédéric | C72: 154322R | D72: CUCQ | E72: COFFRE Frédéric | F72: CD62 | U72: R1 | V72: = | W72: R1 np | X72: = | Y72: R1 | Z72: = | AA72: R1 np | AB72: = | AC72: R1 np | AD72: = | AE72: R1 | AF72: = | AG72: R1 np | AH72: = | AI72: R1 | AJ72: 11ème Qualifications CD62 R1 2017 - 2018
A73: COLAS | B73: Gerard | C73: 127114A | D73: LAON | E73: COLAS Gerard | F73: CD02 | Y73: R1 | Z73: = | AA73: R1 np | AB73: = | AC73: R1 np | AD73: = | AE73: R1 | AF73: = | AG73: R1 np | AH73: = | AI73: R1 | AJ73: 4ème finale CD02 R1 2017 - 2018
A74: CORNOTE | B74: Robert | C74: 136328K | D74: PONT DE METZ | E74: CORNOTE Robert | F74: CD80 | Y74: R1 | Z74: = | AA74: R1 | AB74: = | AC74: R1 np | AD74: = | AE74: R1 | AF74: = | AG74: R1 np | AH74: = | AI74: R1 | AJ74: NC - Classé R2 à la bande et R1 au 3B
A75: CORRE | B75: Maxime | C75: 148496J | D75: GUIGNICOURT | E75: CORRE Maxime | F75: CD02 | Y75: R1 | Z75: = | AA75: R1 np | AB75: = | AC75: R1 np | AD75: = | AE75: R1 | AF75: = | AG75: R1 np | AH75: = | AI75: R1 | AJ75: 6ème finale CD02 R1 2017 - 2018
A76: COUPLET | B76: Sébastien | C76: 159215K | D76: CREVECOEUR | E76: COUPLET Sébastien | F76: CD60 | G76: R1 | J76: 19ème Qualifications CD60 R1 2019-2020 | AC76: R1 | AD76: = | AE76: R1 | AF76: = | AG76: R1 np | AH76: = | AI76: R1 | AJ76: 19ème Qualifications CD60 R1 2019-2020
A77: COUPLET | B77: Valentin | C77: 156823K | D77: CREVECOEUR | E77: =A77 & " " & B77 -> COUPLET Valentin | F77: CD60 | AC77: R1 | AD77: = | AE77: R1 | AF77: = | AG77: R1 np | AH77: = | AI77: R1 | AJ77: 15ème Qualifications CD60 R1 2019-2020
A78: COURCOL | B78: François | C78: 117712K | D78: RONCHIN | E78: COURCOL François | F78: CD59 | AA78: R1 | AB78: = | AC78: R1 | AD78: = | AE78: R1 | AF78: = | AG78: R1 | AH78: = | AI78: R1 | AJ78: 19ème Qualifications CD59 N1 2021-2022
A79: COUSIN | B79: Francis | C79: 160031X | D79: SAINT QUENTIN | E79: COUSIN Francis | F79: CD02 | Y79: R1 | Z79: = | AA79: R1 | AB79: = | AC79: R1 | AD79: = | AE79: R1 | AF79: = | AG79: R1 | AH79: = | AI79: R1 | AJ79: 5ème Finale CD02 R1 2021-2022
A80: CUVILLIER | B80: François | C80: 150498K | D80: PONT DE METZ | E80: CUVILLIER François | F80: CD80 | W80: R1 | X80: = | Y80: R1 | Z80: ▲ | AA80: N1 | AB80: = | AC80: N1 np | AD80: = | AE80: N1 | AF80: = | AG80: N1 | AH80: = | AI80: N1 | AJ80: 7ème Qualifications CD80 N1 2021-2022
A81: CYFFERS | B81: Jean Bernard | C81: 156958G | D81: CUCQ | E81: CYFFERS Jean Bernard | F81: CD62 | AC81: R1 | AD81: = | AE81: R1 | AF81: = | AG81: R1 | AH81: = | AI81: R1 | AJ81: 5ème Qualifications CD62 R1 2021-2022
A82: DA SILVA | B82: José | C82: 112137Z | D82: TERGNIER | E82: DA SILVA José | F82: CD02 | W82: R1 | X82: = | Y82: R1 np | Z82: = | AA82: R1 np | AB82: = | AC82: R1 np | AD82: = | AE82: R1 | AF82: = | AG82: R1 np | AH82: = | AI82: R1 | AJ82: 2ème Finale CD02 R1 2016 - 2017
A83: DAMONNEVILLE | B83: Blandine | C83: 123321D | D83: MOREUIL | E83: DAMONNEVILLE Blandine | F83: CD80 | W83: R1 | X83: = | Y83: R1 | Z83: = | AA83: R1 np | AB83: = | AC83: R1 np | AD83: = | AE83: R1 | AF83: = | AG83: R1 np | AH83: = | AI83: R1 | AJ83: 12ème Qualifications CD80 R1 2017 - 2018
A84: DEBOUDT | B84: Jean | C84: 017264A | D84: DUNKERQUE | E84: DEBOUDT Jean | F84: CD59 | I84: R1 | J84: = | K84: R1 np | L84: = | M84: R1 np | N84: = | O84: R1 np | P84: = | Q84: R1 np | R84: = | S84: R1 np | T84: = | U84: R1 np | V84: = | W84: R1 np | X84: = | Y84: R1 np | Z84: = | AA84: R2 np | AB84: = | AC84: R1 np | AD84: = | AE84: R1 | AF84: = | AG84: R1 np | AH84: = | AI84: R1 | AJ84: 16ème Qualifications CD59 R1 2009-2010
A85: DECHAMPS | B85: Enguerrand | C85: 160760P | D85: VAUDESSON | E85: DECHAMPS Enguerrand | F85: CD02 | Y85: R1 | Z85: = | AA85: R1 np | AB85: = | AC85: R1 np | AD85: = | AE85: R1 | AF85: = | AG85: R1 np | AH85: = | AI85: R1 | AJ85: 8ème Qualifications CD02 R1 2017 - 2018
A86: DECONINCK | B86: Franky | C86: 136119J | D86: FACHES-THUMESNIL | E86: DECONINCK Franky | F86: CD59 | M86: N1 | N86: = | O86: N1 | P86: = | Q86: N1 np | R86: = | S86: N1 | T86: = | U86: N1 np | V86: = | W86: N1 np | X86: = | Y86: N1 np | Z86: = | AA86: N1 np | AB86: = | AC86: N1 np | AD86: = | AE86: N1 | AF86: = | AG86: N1 np | AH86: = | AI86: N1 | AJ86: 2ème finale Ligue N1 2014-2015
A87: DECOTTE | B87: Robert | C87: 146924A | D87: FRIVILLE | E87: DECOTTE Robert | F87: CD80 | AA87: R1 | AB87: = | AC87: R1 np | AD87: = | AE87: R1 | AF87: = | AG87: R1 np | AH87: = | AI87: R1 | AJ87: NC 5Q R1 bande N3 3B ==> R1 5Q
A88: DEFENTE | B88: Bruno | C88: 118300A | D88: SOISSONS | E88: DEFENTE Bruno | F88: CD02 | W88: N1 | X88: = | Y88: N1 np | Z88: = | AA88: N1 np | AB88: = | AC88: N1 np | AD88: = | AE88: N1 | AF88: = | AG88: N1 np | AH88: = | AI88: N1 | AJ88: 5ème Finale CD02 N1 2016 - 2017
A89: DELAFOSSE | B89: Gilles | C89: 154009B | D89: PONT DE METZ | E89: DELAFOSSE Gilles | F89: CD80 | W89: R1 | X89: = | Y89: R1 np | Z89: = | AA89: R1 np | AB89: = | AC89: R1 np | AD89: = | AE89: R1 | AF89: = | AG89: R1 | AH89: = | AI89: R1 | AJ89: 5ème Qualifications CD80 R1 221-2022
A90: DELANDRE | B90: Michel | C90: 137684O | D90: GUIGNICOURT | E90: DELANDRE Michel | F90: CD02 | W90: N1 | X90: = | Y90: N1 np | Z90: = | AA90: N1 np | AB90: = | AC90: N1 np | AD90: = | AE90: N1 | AF90: = | AG90: N1 np | AH90: = | AI90: N1 | AJ90: 103ème Classement National 2016 - 2017
A91: DELAPORTE | B91: Laurent | C91: 021008A | D91: ABBEVILLE | E91: DELAPORTE Laurent | F91: CD80 | AA91: R1 | AB91: = | AC91: R1 np | AD91: = | AE91: R1 | AF91: = | AG91: R1 np | AH91: = | AI91: R1 | AJ91: NC 5Q R1 bande N3 3B ==> R1 5Q
A92: DELATTRE | B92: Christian | C92: 017030A | D92: DIVION | E92: DELATTRE Christian | F92: CD62 | I92: R1 | J92: = | K92: R1 np | L92: = | M92: R1 | N92: = | O92: R1 | P92: = | Q92: R1 np | R92: = | S92: R1 | T92: = | U92: R1 np | V92: = | W92: R1 np | X92: = | Y92: R1 np | Z92: = | AA92: R1 np | AB92: = | AC92: R1 np | AD92: = | AE92: R1 | AF92: = | AG92: R1 np | AH92: = | AI92: R1 | AJ92: 4ème Finale CD62 R1 2016 - 2017
A93: DELATTRE | B93: Gregory | C93: 153535L | D93: GRANDE SYNTHE | E93: DELATTRE Gregory | F93: CD59 | S93: R1 | T93: = | U93: R1 np | V93: = | W93: R1 np | X93: = | Y93: R1 np | Z93: = | AA93: R2 np | AB93: = | AC93: R1 np | AD93: = | AE93: R1 | AF93: = | AG93: R1 np | AH93: = | AI93: R1 | AJ93: 6ème Qualifications CD59 R1 2016-2017
A94: DELATTRE | B94: Hervé | C94: 119970G | D94: MOREUIL | E94: DELATTRE Hervé | F94: CD80 | W94: N1 | X94: = | Y94: N1 | Z94: = | AA94: N1 | AB94: = | AC94: N1 | AD94: = | AE94: N1 | AF94: = | AG94: N1 | AH94: = | AI94: N1 | AJ94: 5ème Qualifications CD80 N1 2021-2022 / 78ème ranking national
A95: DELATTRE | B95: Julien | C95: 107632S | D95: DIVION | E95: DELATTRE Julien | F95: CD62 | G95: N1 np | H95: = | I95: N1 np | J95: = | K95: N1 np | L95: = | M95: N1 np | N95: = | O95: N1 np | P95: = | Q95: N1 np | R95: = | S95: N1 np | T95: = | U95: N1 np | V95: = | W95: N1 np | X95: = | Y95: N1 np | Z95: = | AA95: N1 np | AB95: = | AC95: N1 np | AD95: = | AE95: N1 | AF95: = | AG95: N1 np | AH95: = | AI95: N1 | AJ95: 1er finale Ligue R1 2007-2008 ou antérieur
A96: DELATTRE | B96: Philippe | C96: 112747L | D96: DIVION | E96: DELATTRE Philippe | F96: CD62 | K96: R1 | L96: = | M96: R1 | N96: = | O96: R1 | P96: = | Q96: R1 np | R96: = | S96: R1 np | T96: = | U96: R1 np | V96: = | W96: R1 np | X96: = | Y96: R1 np | Z96: = | AA96: R1 np | AB96: = | AC96: R1 np | AD96: = | AE96: R1 | AF96: = | AG96: R1 np | AH96: = | AI96: R1 | AJ96: xxème Qualifications CD62 R1 Artois 2012-2013
A97: DELECROIX | B97: Aymerick | C97: 140888U | D97: DIVION | E97: DELECROIX Aymerick | F97: CD62 | K97: R1 | L97: = | M97: R1 np | N97: = | O97: R1 np | P97: = | Q97: R1 np | R97: = | S97: R1 np | T97: = | U97: R1 np | V97: = | W97: R1 np | X97: = | Y97: R1 np | Z97: = | AA97: R1 np | AB97: = | AC97: R1 np | AD97: = | AE97: R1 | AF97: = | AG97: R1 np | AH97: = | AI97: R1 | AJ97: xxème Qualifications CD62 R1 Artois 2010-2011
A98: DELEPIERRE | B98: Patrick | C98: 109142U | D98: FACHES-THUMESNIL | E98: DELEPIERRE Patrick | F98: CD59 | G98: N1 | H98: ▼ | I98: R1 | J98: = | K98: R1 np | L98: = | M98: R1 np | N98: = | O98: R1 np | P98: = | Q98: R1 np | R98: = | S98: R1 np | T98: = | U98: R1 np | V98: = | W98: R1 np | X98: = | Y98: R1 np | Z98: = | AA98: R2 np | AB98: = | AC98: R1 np | AD98: = | AE98: R1 | AF98: = | AG98: R1 np | AH98: = | AI98: R1 | AJ98: xxème Tournois nationaux N1 2009-2010
A99: DELFORGE | B99: Benjamin | C99: 151362Z | D99: ANNOEULLIN | E99: DELFORGE Benjamin | F99: CD59 | Q99: R1 | R99: = | S99: R1 np | T99: = | U99: R1 np | V99: = | W99: R1 np | X99: = | Y99: R1 np | Z99: = | AA99: R2 np | AB99: = | AC99: R1 np | AD99: = | AE99: R1 | AF99: = | AG99: R1 np | AH99: = | AI99: R1 | AJ99: 33ème Qualifications Ligue N1 2013-2014
A100: DELFOSSE | B100: Fabien | C100: 152796H | D100: SAINT QUENTIN | E100: DELFOSSE Fabien | F100: CD02 | Y100: R1 | Z100: = | AA100: R1 | AB100: ▲ | AC100: N1 | AD100: = | AE100: N1 | AF100: = | AG100: N1 np | AH100: = | AI100: N1 | AJ100: 3ème Finale CD02 N1 2019-2020
A101: DELMARRE | B101: Sylvain | C101: 159246T | D101: ESTAIRE | E101: DELMARRE Sylvain | F101: CD59 | AG101: R1 np | AH101: = | AI101: R1 | AJ101: NC, R1 bande N3 3B ==> R1 5Q
A102: DELRUE | B102: André | C102: 105710U | D102: VILLENEUVE D'ASCQ | E102: DELRUE André | F102: CD59 | G102: R1 | H102: = | I102: R1 | J102: ▲ | K102: N1 | L102: = | M102: N1 np | N102: = | O102: N1 np | P102: = | Q102: N1 np | R102: = | S102: N1 np | T102: = | U102: N1 np | V102: = | W102: N1 np | X102: = | Y102: N1 np | Z102: = | AA102: N1 | AB102: = | AC102: N1 np | AD102: = | AE102: N1 | AF102: = | AG102: N1 | AH102: = | AI102: N1 | AJ102: 13ème Qualifications CD59 N1 2021-2022
A103: DELRUE | B103: Céline | C103: 162457J | D103: FRIVILLE | E103: DELRUE Céline | F103: CD80 | Y103: R1 | Z103: = | AA103: R1 | AB103: = | AC103: R1 np | AD103: = | AE103: R1 | AF103: = | AG103: R1 | AH103: = | AI103: R1 | AJ103: 9ème Qualifications CD80 R1 221-2022
A104: DELSOL | B104: Philippe | C104: 101151L | D104: ANNOEULLIN | E104: DELSOL Philippe | F104: CD59 | G104: N1 | H104: = | I104: N1 | J104: = | K104: N1 | L104: ▲ | M104: Masters | N104: ▼ | O104: N1 | P104: = | Q104: N1 | R104: = | S104: Masters | T104: ▼ | U104: N1 | V104: = | W104: N1 | X104: = | Y104: N1 | Z104: ▲ | AA104: Masters | AB104: ▼ | AC104: N1 | AD104: = | AE104: N1 | AF104: = | AG104: N1 | AH104: = | AI104: N1 | AJ104: 11ème Qualifications CD59 N1 2021-2022
A105: DEMAZIERES | B105: David | C105: 016939N | D105: ST POL SUR MER | E105: DEMAZIERES David | F105: CD59 | I105: R1 | J105: = | K105: R1 np | L105: = | M105: R1 np | N105: = | O105: R1 np | P105: = | Q105: R1 np | R105: = | S105: R1 np | T105: = | U105: R1 np | V105: = | W105: R1 np | X105: = | Y105: R1 np | Z105: = | AA105: R2 np | AB105: = | AC105: R1 np | AD105: = | AE105: R1 | AF105: = | AG105: R1 np | AH105: = | AI105: R1 | AJ105: 13ème Qualifications CD59 R1 2009-20010
A106: DEMILLY | B106: Dominique | C106: 017062G | D106: FACHES-THUMESNIL | E106: DEMILLY Dominique | F106: CD59 | G106: R1 | H106: = | I106: R1 | J106: = | K106: R1 np | L106: = | M106: R1 np | N106: = | O106: R1 np | P106: = | Q106: R1 np | R106: = | S106: R1 np | T106: = | U106: R1 np | V106: = | W106: R1 np | X106: = | Y106: R1 np | Z106: = | AA106: R2 np | AB106: = | AC106: R1 np | AD106: = | AE106: R1 | AF106: = | AG106: R1 np | AH106: = | AI106: R1 | AJ106: 18ème Qualifications CD59 R1 2008-2009
A107: DEPLECHIN | B107: Robert | C107: 138329J | D107: LE TOUQUET | E107: DEPLECHIN Robert | F107: CD62 | I107: R1 | J107: = | K107: R1 | L107: = | M107: R1 | N107: = | O107: R1 | P107: ▲ | Q107: N1 | R107: = | S107: N1 | T107: = | U107: N1 | V107: = | W107: N1 np | X107: = | Y107: N1 | Z107: = | AA107: N1 | AB107: = | AC107: N1 np | AD107: = | AE107: N1 | AF107: = | AG107: N1 | AH107: = | AI107: N1 | AJ107: 16ème Qualifications CD62 N1 2021-2022
A108: DEPLECHIN | B108: Roland | C108: 154167Y | D108: CUCQ | E108: DEPLECHIN Roland | F108: CD62 | U108: R1 | V108: = | W108: R1 | X108: = | Y108: R1 | Z108: = | AA108: R1 | AB108: ▲ | AC108: N1 | AD108: = | AE108: N1 | AF108: = | AG108: N1 | AH108: = | AI108: N1 | AJ108: 5ème Qualifications CD62 N1 2021-2022
A109: DERACHE | B109: Michel | C109: 016592E | D109: ESTAIRE | E109: DERACHE Michel | F109: CD59 | AG109: R1 np | AH109: = | AI109: R1 | AJ109: NC, N3 bande N3 3B ==> R1 5Q
A110: DEREUDDRE | B110: Dominique | C110: 160916J | D110: GRANDE SYNTHE | E110: DEREUDDRE Dominique | F110: CD59 | Y110: R1 | Z110: = | AA110: R2 | AB110: = | AC110: R1 | AD110: = | AE110: R1 | AF110: = | AG110: R1 | AH110: ▲ | AI110: N1 | AJ110: 10ème Qualifications CD59 N1 2021-2022
A111: DEROLEZ | B111: Jean-Pierre | C111: 101152M | D111: ANNOEULLIN | E111: DEROLEZ Jean-Pierre | F111: CD59 | G111: R1 | H111: = | I111: R1 | J111: = | K111: R1 | L111: = | M111: R1 | N111: ▲ | O111: N1 | P111: = | Q111: N1 | R111: = | S111: N1 | T111: = | U111: N1 | V111: = | W111: N1 | X111: = | Y111: N1 | Z111: = | AA111: R1 | AB111: ▲ | AC111: N1 | AD111: = | AE111: N1 | AF111: = | AG111: N1 | AH111: = | AI111: N1 | AJ111: 14ème Qualifications CD59 N1 2021-2022 / 119ème ranking national
A112: DESBONNETS | B112: Clémentine | C112: 131440K | D112: DUNKERQUE | E112: DESBONNETS Clémentine | F112: CD59 | G112: R1 | H112: = | I112: R1 np | J112: = | K112: R1 np | L112: = | M112: R1 np | N112: = | O112: R1 np | P112: = | Q112: R1 np | R112: = | S112: R1 np | T112: = | U112: R1 np | V112: = | W112: R1 np | X112: = | Y112: R1 np | Z112: = | AA112: R2 np | AB112: = | AC112: R1 np | AD112: = | AE112: R1 | AF112: = | AG112: R1 np | AH112: = | AI112: R1 | AJ112: 25ème Qualifications CD59 R1 2008-2009
A113: DESCLAIR | B113: Guy | C113: 137802C | D113: SENLIS | E113: DESCLAIR Guy | F113: CD60 | W113: N1 | X113: ▼ | Y113: R1 | Z113: = | AA113: R1 | AB113: = | AC113: R1 | AD113: = | AE113: R1 | AF113: = | AG113: R1 | AH113: = | AI113: R1 | AJ113: 6eme Finale R1 CD60 2021-2022
A114: DESMETTRE | B114: Bruno | C114: 016604Q | D114: RONCHIN | E114: DESMETTRE Bruno | F114: CD59 | AA114: N1 | AB114: = | AC114: N1 | AD114: = | AE114: N1 | AF114: = | AG114: N1 | AH114: = | AI114: N1 | AJ114: 3ème Qualifications CD59 N1 2021-2022
A115: DESSAINT | B115: Alain | C115: 016757N | D115: BILLY MONTIGNY | E115: DESSAINT Alain | F115: CD62 | K115: R1 | L115: = | M115: R1 np | N115: = | O115: R1 np | P115: = | Q115: R1 np | R115: = | S115: R1 np | T115: = | U115: R1 np | V115: = | W115: R1 np | X115: = | Y115: R1 np | Z115: = | AA115: R1 np | AB115: = | AC115: R1 np | AD115: = | AE115: R1 | AF115: = | AG115: R1 np | AH115: = | AI115: R1 | AJ115: xxème Qualifications CD62 R1 Artois 2010-2011
A116: DESWELLE | B116: Jean-Pierre | C116: 016654O | D116: DUNKERQUE | E116: DESWELLE Jean-Pierre | F116: CD59 | G116: N1 np | H116: = | I116: N1 np | J116: = | K116: N1 np | L116: = | M116: N1 np | N116: = | O116: N1 np | P116: = | Q116: N1 np | R116: = | S116: N1 np | T116: = | U116: N1 np | V116: = | W116: N1 np | X116: = | Y116: N1 np | Z116: = | AA116: N1 np | AB116: = | AC116: N1 np | AD116: = | AE116: N1 | AF116: = | AG116: N1 np | AH116: = | AI116: N1 | AJ116: 4ème Finale district maritime N1 2007-2008 ou antérieur
A117: DEVOS | B117: Jackie | C117: 121408O | D117: GRAVELINES | E117: DEVOS Jackie | F117: CD59 | G117: R1 | H117: = | I117: R1 | J117: ▲ | K117: N1 | L117: = | M117: N1 | N117: = | O117: N1 | P117: = | Q117: N1 | R117: = | S117: N1 | T117: = | U117: N1 | V117: = | W117: N1 np | X117: = | Y117: N1 | Z117: = | AA117: R1 np | AB117: = | AC117: R1 | AD117: ▲ | AE117: N1 | AF117: = | AG117: N1 | AH117: = | AI117: N1 | AJ117: 17ème Qualifications CD59 N1 2021-2022 / 104ème ranking national
A118: DEWEVRE | B118: Jordan | C118: 140888U | D118: DIVION | E118: DEWEVRE Jordan | F118: CD62 | I118: R1 | J118: = | K118: R1 | L118: = | M118: R1 np | N118: = | O118: R1 np | P118: = | Q118: R1 np | R118: = | S118: R1 np | T118: = | U118: R1 np | V118: = | W118: R1 np | X118: = | Y118: R1 np | Z118: = | AA118: R1 np | AB118: = | AC118: R1 np | AD118: = | AE118: R1 | AF118: = | AG118: R1 np | AH118: = | AI118: R1 | AJ118: 4ème Finale CD62 2010-2011
A119: DIEU | B119: Jean-Charles | C119: 143987Z | D119: MOREUIL | E119: DIEU Jean-Charles | F119: CD80 | Y119: R1 | Z119: = | AA119: R1 | AB119: = | AC119: R1 np | AD119: = | AE119: R1 | AF119: = | AG119: R1 np | AH119: = | AI119: R1 | AJ119: 10ème Qualifications CD80 R1 2018-2019 - 109ème ème tournois nationaux 2018-2019
A120: DIOT | B120: Alain | C120: 152487X | D120: CHAMBLY | E120: DIOT Alain | F120: CD60 | W120: R1 | X120: = | Y120: R1 np | Z120: = | AA120: R1 | AB120: = | AC120: R1 np | AD120: = | AE120: R1 | AF120: = | AG120: R1 np | AH120: = | AI120: R1 | AJ120: 10ème Qualifications CD60 R1 2018-2019
A121: DONNEAU | B121: Philippe | C121: 138350E | D121: ANNOEULLIN | E121: DONNEAU Philippe | F121: CD59 | AA121: R2 | AB121: = | AC121: N1 np | AD121: = | AE121: N1 | AF121: = | AG121: N1 np | AH121: = | AI121: N1 | AJ121: 19ème Qualifications CD59 N1 2018-2019
A122: DRUON | B122: Christian | C122: 017249L | D122: BILLY MONTIGNY | E122: DRUON Christian | F122: CD62 | M122: R1 | N122: = | O122: R1 | P122: = | Q122: R1 np | R122: = | S122: R1 np | T122: = | U122: R1 np | V122: = | W122: R1 np | X122: = | Y122: R1 np | Z122: = | AA122: R1 np | AB122: = | AC122: R1 np | AD122: = | AE122: R1 | AF122: = | AG122: R1 np | AH122: = | AI122: R1 | AJ122: xxème Qualifications CD62 R1 Artois 2012-2013
A123: DUBOIS | B123: Jean-Bernard | C123: 151705X | D123: PONT DE METZ | E123: DUBOIS Jean-Bernard | F123: CD80 | W123: R1 | X123: = | Y123: R1 | Z123: = | AA123: R1 np | AB123: = | AC123: R1 np | AD123: = | AE123: R1 | AF123: = | AG123: R1 np | AH123: = | AI123: R1 | AJ123: 6ème Qualifications CD80 R1 2017 - 2018
A124: DUC | B124: Stéphane | C124: 168735H | D124: RONCHIN | E124: DUC Stéphane | F124: CD59 | AC124: R1 np | AD124: = | AE124: R1 | AF124: = | AG124: R1 | AH124: = | AI124: R1 | AJ124: 5ème Finale CD59 R1 2021-2022
A125: DUCHATEAU | B125: Jean-Pierre | C125: 140116C | D125: CREPY EN VALOIS | E125: DUCHATEAU Jean-Pierre | F125: CD60 | W125: R1 | X125: = | Y125: R1 np | Z125: = | AA125: R1 np | AB125: = | AC125: R1 | AD125: = | AE125: R1 | AF125: = | AG125: R1 | AH125: = | AI125: R1 | AJ125: 15ème Qualifications CD60 R1 2021-2022
A126: DUCROTOY | B126: Patrick | C126: 147338A | D126: PONT DE METZ | E126: DUCROTOY Patrick | F126: CD80 | AG126: R1 np | AH126: = | AI126: R1 | AJ126: NC nouveau joueur ==> R1 5Q
A127: DUCROCQ | B127: Joël | C127: 103017F | D127: WIMILLE | E127: DUCROCQ Joël | F127: CD62 | AC127: R1 | AD127: = | AE127: R1 | AF127: = | AG127: R1 | AH127: = | AI127: R1 | AJ127: 7ème Qualifications CD62 R1 2021-2022 / 9ème Qualifications CD62 N1 2021-2022
A128: DUFRESNOY | B128: Michel | C128: 020761N | D128: PONT DE METZ | E128: DUFRESNOY Michel | F128: CD80 | AA128: R1 | AB128: = | AC128: R1 np | AD128: ▲ | AE128: N1 | AF128: = | AG128: N1 np | AH128: = | AI128: N1 | AJ128: 3ème finale CD80 R1 2018-2019
A129: DUHAMEL | B129: Eddy | C129: 021009B | D129: ABBEVILLE | E129: DUHAMEL Eddy | F129: CD80 | W129: N1 | X129: ▼ | Y129: R1 | Z129: = | AA129: R1 | AB129: ▲ | AC129: N1 np | AD129: = | AE129: N1 | AF129: = | AG129: N1 | AH129: = | AI129: N1 | AJ129: 8ème Qualifications CD80 N1 2021-2022
A130: DUHAMEL | B130: Marcellin | C130: 020868Q | D130: ABBEVILLE | E130: DUHAMEL Marcellin | F130: CD80 | W130: N1 | X130: ▼ | Y130: R1 | Z130: = | AA130: R1 | AB130: = | AC130: R1 np | AD130: = | AE130: R1 | AF130: = | AG130: R1 | AH130: = | AI130: R1 | AJ130: 2ème finale CD80 R1 2021-2022
A131: DUMEIGE | B131: Similien | C131: 156348T | D131: MOREUIL | E131: DUMEIGE Similien | F131: CD80 | Y131: R1 | Z131: = | AA131: R1 | AB131: = | AC131: R1 np | AD131: = | AE131: R1 | AF131: = | AG131: R1 np | AH131: = | AI131: R1 | AJ131: 5ème Qualifications CD80 R1 2018-2019
A132: DUMEIGE | B132: Stéphane | C132: 152672Y | D132: MOREUIL | E132: DUMEIGE Stéphane | F132: CD80 | Y132: R1 | Z132: = | AA132: R1 | AB132: ▲ | AC132: N1 np | AD132: = | AE132: N1 | AF132: = | AG132: N1 | AH132: = | AI132: N1 | AJ132: 4ème Finale Ligue N1 2021-2022
A133: DUPONT | B133: Fabrice | C133: 020718W | D133: ABBEVILLE | E133: DUPONT Fabrice | F133: CD80 | W133: N1 | X133: = | Y133: N1 np | Z133: = | AA133: N1 | AB133: = | AC133: N1 np | AD133: = | AE133: N1 | AF133: = | AG133: N1 np | AH133: = | AI133: N1 | AJ133: 5ème Finale Ligue N1 2018-2019
A134: DUPONT | B134: Lucas | C134: 171057G | D134: MOREUIL | E134: DUPONT Lucas | F134: CD80 | AG134: R1 np | AH134: = | AI134: R1 | AJ134: NC, nouveau joueur ==> R1 5Q
A135: DURAND | B135: Jérémy | C135: 125811X | D135: TERGNIER | E135: DURAND Jérémy | F135: CD02 | W135: N1 | X135: = | Y135: N1 np | Z135: = | AA135: N1 | AB135: = | AC135: N1 np | AD135: ▼ | AE135: R1 | AF135: = | AG135: R1 | AH135: ▲ | AI135: N1 | AJ135: 2ème Finale Ligue R1 2021-2022
A136: DUROYON | B136: Didier | C136: 112201L | D136: MOREUIL | E136: DUROYON Didier | F136: CD80 | W136: N1 | X136: = | Y136: N1 | Z136: = | AA136: N1 | AB136: = | AC136: N1 np | AD136: = | AE136: N1 | AF136: = | AG136: N1 | AH136: = | AI136: N1 | AJ136: 3ème Finale CD80 N1 2021-2022
A137: DURTETTE | B137: Daniel | C137: 141367F | D137: LAON | E137: DURTETTE Daniel | F137: CD02 | Y137: R1 | Z137: = | AA137: R1 np | AB137: = | AC137: N1 np | AD137: = | AE137: R1 | AF137: = | AG137: R1 np | AH137: = | AI137: R1 | AJ137: 11ème Qualifications CD02 R1 2017 - 2018
A138: DUSSART | B138: Paméla | C138: 017290A | D138: DIVION | E138: DUSSART Paméla | F138: CD62 | M138: R1 | N138: = | O138: R1 np | P138: = | Q138: R1 np | R138: = | S138: R1 np | T138: = | U138: R1 np | V138: = | W138: R1 np | X138: = | Y138: R1 np | Z138: = | AA138: R1 np | AB138: = | AC138: R1 np | AD138: = | AE138: R1 | AF138: = | AG138: R1 np | AH138: = | AI138: R1 | AJ138: xxème Qualifications CD62 R1 Artois 2011-2012
A139: DUTAILLY | B139: Michel | C139: 151159D | D139: GRANDE SYNTHE | E139: DUTAILLY Michel | F139: CD59 | U139: R1 | V139: = | W139: R1 | X139: = | Y139: R1 | Z139: = | AA139: R2 | AB139: = | AC139: R1 | AD139: = | AE139: R1 | AF139: = | AG139: R1 | AH139: = | AI139: R1 | AJ139: 15ème Qualifications R1 CD59 2021-2022
A140: ELIARD | B140: Cédric | C140: 020827B | D140: LAON | E140: ELIARD Cédric | F140: CD02 | W140: N1 np | X140: = | Y140: N1 np | Z140: = | AA140: N1 np | AB140: = | AC140: N1 np | AD140: = | AE140: N1 | AF140: = | AG140: N1 np | AH140: = | AI140: N1 | AJ140: 8ème CD02 N1 2015 - 2016
A141: ELIARD | B141: Yvon | C141: 020682M | D141: LAON | E141: =A141 & " " & B141 -> ELIARD Yvon | F141: CD02 | W141: N1 np | X141: = | Y141: N1 np | Z141: = | AA141: N1 np | AB141: = | AC141: N1 np | AD141: = | AE141: N1 | AF141: = | AG141: N1 np | AH141: = | AI141: N1 | AJ141: 7ème CD02 N1 2015 - 2016
A142: FAUCOMPREZ | B142: Didier | C142: 0131015Z | D142: ANNOEULLIN | E142: FAUCOMPREZ Didier | F142: CD59 | K142: N1 | L142: = | M142: N1 np | N142: = | O142: N1 np | P142: = | Q142: N1 np | R142: = | S142: N1 np | T142: = | U142: N1 np | V142: = | W142: N1 np | X142: = | Y142: N1 np | Z142: = | AA142: N1 np | AB142: = | AC142: N1 np | AD142: = | AE142: N1 | AF142: = | AG142: N1 np | AH142: = | AI142: N1 | AJ142: 17ème CF N1 2012-2013
A143: FAURE | B143: Stéphane | C143: 140114A | D143: CREPY EN VALOIS | E143: FAURE Stéphane | F143: CD60 | Y143: R1 | Z143: ▲ | AA143: N1 | AB143: = | AC143: N1 | AD143: = | AE143: N1 | AF143: = | AG143: N1 | AH143: = | AI143: N1 | AJ143: 3eme Finale N1 CD60 2021-2022 / 76ème ranking national
A144: FELLINE | B144: Riccardo | C144: 173459S | D144: CREPY EN VALOIS | E144: FELLINE Riccardo | F144: CD60 | AG144: N1 | AH144: = | AI144: N1 | AJ144: 18ème CF N1 2021-2022
A145: FERMAUT | B145: Jean-Marie | C145: 016918S | D145: DIVION | E145: FERMAUT Jean-Marie | F145: CD62 | G145: N1 | H145: = | I145: N1 np | J145: = | K145: N1 np | L145: = | M145: N1 np | N145: = | O145: N1 np | P145: = | Q145: N1 np | R145: = | S145: N1 np | T145: = | U145: N1 np | V145: = | W145: N1 np | X145: = | Y145: N1 np | Z145: = | AA145: N1 np | AB145: = | AC145: N1 | AD145: = | AE145: N1 | AF145: = | AG145: N1 | AH145: = | AI145: N1 | AJ145: 3ème Finale CD62 N1 2021-2022
A146: FLAHAUT | B146: Ghislain | C146: 159163D | D146: CUCQ | E146: FLAHAUT Ghislain | F146: CD62 | Y146: R1 | Z146: = | AA146: R1 | AB146: = | AC146: R1 | AD146: = | AE146: R1 | AF146: = | AG146: R1 | AH146: = | AI146: R1 | AJ146: 3ème Finale CD62 R1 2021-2022
A147: FLEURANT | B147: Alexandre | C147: 141329T | D147: DENAIN | E147: FLEURANT Alexandre | F147: CD59 | M147: R1 | N147: = | O147: R1 | P147: = | Q147: R1 np | R147: = | S147: R1 np | T147: = | U147: R1 np | V147: = | W147: R1 np | X147: = | Y147: R1 np | Z147: = | AA147: R2 np | AB147: = | AC147: R1 np | AD147: = | AE147: R1 | AF147: = | AG147: R1 np | AH147: = | AI147: R1 | AJ147: 4ème Finale CD59 R1 2012-2013
A148: FLEURANT | B148: Richard | C148: 016709R | D148: DENAIN | E148: FLEURANT Richard | F148: CD59 | G148: R1 | H148: = | I148: R1 | J148: = | K148: R1 | L148: = | M148: R1 | N148: ▲ | O148: N1 | P148: = | Q148: N1 | R148: = | S148: N1 np | T148: = | U148: N1 np | V148: = | W148: N1 np | X148: = | Y148: N1 np | Z148: = | AA148: N1 np | AB148: = | AC148: N1 np | AD148: = | AE148: N1 | AF148: = | AG148: N1 np | AH148: = | AI148: N1 | AJ148: 2ème Finale Ligue R1 2011-2012
A149: FONTAINE | B149: Christian | C149: 112748M | D149: DIVION | E149: FONTAINE Christian | F149: CD62 | I149: R1 | J149: ▲ | K149: N1 | L149: = | M149: N1 np | N149: = | O149: N1 np | P149: = | Q149: N1 np | R149: = | S149: N1 np | T149: = | U149: N1 np | V149: = | W149: N1 np | X149: = | Y149: N1 np | Z149: = | AA149: N1 | AB149: = | AC149: N1 | AD149: = | AE149: N1 | AF149: = | AG149: N1 | AH149: = | AI149: N1 | AJ149: 2ème Finale CD62 N1 2021-2022
A150: FONTAINE | B150: Dany | C150: 101139Z | D150: ANNOEULLIN | E150: FONTAINE Dany | F150: CD59 | AA150: N1 | AB150: = | AC150: N1 np | AD150: = | AE150: N1 | AF150: = | AG150: N1 np | AH150: = | AI150: N1 | AJ150: 29ème Finale France N1 2018-2019
A151: FOULON | B151: Jeremy | C151: 138344Y | D151: COURRIERES | E151: FOULON Jeremy | F151: CD62 | S151: R1 | T151: = | U151: R1 np | V151: = | W151: R1 np | X151: = | Y151: R1 np | Z151: = | AA151: R1 np | AB151: = | AC151: R1 np | AD151: = | AE151: R1 | AF151: = | AG151: R1 np | AH151: = | AI151: R1 | AJ151: Nouveau joueur 2013-2014 - Pas de résultats connus
A152: FRADET | B152: David | C152: 133127H | D152: ST POL SUR MER | E152: FRADET David | F152: CD59 | S152: N1 | T152: = | U152: N1 np | V152: = | W152: N1 np | X152: = | Y152: N1 np | Z152: = | AA152: N1 np | AB152: = | AC152: N1 np | AD152: = | AE152: N1 | AF152: = | AG152: N1 np | AH152: = | AI152: N1 | AJ152: 23ème qualifications ligue 2014-2015
A153: FRADET | B153: Noël | C153: 016695D | D153: ST POL SUR MER | E153: FRADET Noël | F153: CD59 | I153: R1 | J153: = | K153: R1 np | L153: = | M153: R1 np | N153: = | O153: R1 np | P153: = | Q153: R1 np | R153: = | S153: R1 np | T153: = | U153: R1 np | V153: = | W153: R1 np | X153: = | Y153: R1 np | Z153: = | AA153: R2 np | AB153: = | AC153: R1 np | AD153: = | AE153: R1 | AF153: = | AG153: R1 np | AH153: = | AI153: R1 | AJ153: 8ème Qualifications CD59 R1 2009-2010
A154: FRISON | B154: Michel | C154: 152548N | D154: GUIGNICOURT | E154: FRISON Michel | F154: CD02 | W154: R1 | X154: ▲ | Y154: N1 | Z154: = | AA154: N1 np | AB154: = | AC154: N1 np | AD154: = | AE154: N1 | AF154: = | AG154: N1 np | AH154: = | AI154: N1 | AJ154: 2ème Finale CD02 N1 2017 - 2018
A155: GAMBIER | B155: Francis | C155: 165884J | D155: CUCQ | E155: GAMBIER Francis | F155: CD62 | AA155: R1 | AB155: = | AC155: R1 | AD155: = | AE155: R1 | AF155: = | AG155: R1 | AH155: = | AI155: R1 | AJ155: 17ème Qualifications CD62 N1 2021-2022
A156: GAREST | B156: Olivier | C156: 102590U | D156: ABBEVILLE | E156: GAREST Olivier | F156: CD80 | AA156: R1 | AB156: = | AC156: R1 np | AD156: = | AE156: R1 | AF156: = | AG156: R1 np | AH156: = | AI156: R1 | AJ156: NC
A157: GAUDICHON | B157: Remy | C157: 171793G | D157: PONT DE METZ | E157: GAUDICHON Remy | F157: CD80 | AG157: R1 np | AH157: = | AI157: R1 | AJ157: NC nouveau joueur ==> R1 5Q
A158: GEETS | B158: Patrice | C158: 126847T | D158: ANNOEULLIN | E158: GEETS Patrice | F158: CD59 | G158: N1 | H158: = | I158: N1 | J158: = | K158: N1 | L158: = | M158: N1 | N158: = | O158: N1 | P158: = | Q158: N1 np | R158: = | S158: N1 | T158: = | U158: N1 | V158: = | W158: N1 | X158: = | Y158: N1 | Z158: = | AA158: N1 | AB158: = | AC158: N1 | AD158: = | AE158: N1 | AF158: = | AG158: N1 | AH158: = | AI158: N1 | AJ158: 4eme Finale CD59 N1 2021-2022 / 49ème ranking national
A159: GENNIN | B159: Jean-Robert | C159: 133074G | D159: VILLENEUVE D'ASCQ | E159: GENNIN Jean-Robert | F159: CD59 | G159: R1 | H159: = | I159: R1 np | J159: = | K159: R1 np | L159: = | M159: R1 np | N159: = | O159: R1 np | P159: = | Q159: R1 np | R159: = | S159: R1 np | T159: = | U159: R1 np | V159: = | W159: R1 np | X159: = | Y159: R1 np | Z159: = | AA159: R2 np | AB159: = | AC159: R1 np | AD159: = | AE159: R1 | AF159: = | AG159: R1 np | AH159: = | AI159: R1 | AJ159: xxème Qualifications CD59 R1 Flandres < 2008
A160: GEOFFROY | B160: Florent | C160: 123333P | D160: CREVECOEUR | E160: GEOFFROY Florent | F160: CD60 | AC160: R1 | AD160: = | AE160: R1 | AF160: = | AG160: R1 np | AH160: = | AI160: R1 | AJ160: 9ème Qualifications CD60 R1 2019-2020
A161: GODARD | B161: Alain | C161: 152303X | D161: PONT DE METZ | E161: GODARD Alain | F161: CD80 | W161: N1 | X161: = | Y161: N1 | Z161: = | AA161: N1 | AB161: = | AC161: N1 | AD161: = | AE161: N1 | AF161: = | AG161: N1 | AH161: = | AI161: N1 | AJ161: 22ème CF N1 2021-2022
A162: GODEFROIDT | B162: Michel | C162: 016859L | D162: RONCHIN | E162: GODEFROIDT Michel | F162: CD59 | G162: R1 np | H162: = | I162: R1 np | J162: = | K162: R1 np | L162: = | M162: R1 np | N162: = | O162: R1 np | P162: = | Q162: R1 np | R162: = | S162: R1 np | T162: = | U162: R1 np | V162: = | W162: R1 np | X162: = | Y162: R1 np | Z162: = | AA162: R2 np | AB162: = | AC162: R1 np | AD162: = | AE162: R1 | AF162: = | AG162: R1 np | AH162: = | AI162: R1 | AJ162: 11ème Qualifications CD59 R1 2008-2009
A163: GOETINCK | B163: Frédéric | C163: 117692Q | D163: BILLY MONTIGNY | E163: GOETINCK Frédéric | F163: CD62 | M163: R1 | N163: = | O163: R1 np | P163: = | Q163: R1 np | R163: = | S163: R1 np | T163: = | U163: R1 np | V163: = | W163: R1 np | X163: = | Y163: R1 np | Z163: = | AA163: R1 np | AB163: = | AC163: R1 np | AD163: = | AE163: R1 | AF163: = | AG163: R1 np | AH163: = | AI163: R1 | AJ163: 3ème Finale Ligue R1 2011-2012
A164: GORAZDA | B164: Tom | C164: 149165L | D164: SOISSONS | E164: GORAZDA Tom | F164: CD02 | W164: N1 np | X164: = | Y164: N1 np | Z164: = | AA164: N1 np | AB164: = | AC164: N1 np | AD164: = | AE164: N1 | AF164: = | AG164: N1 np | AH164: = | AI164: N1 | AJ164: 1er CD02 R1 2015 - 2016
A165: GORET | B165: Patrick | C165: 020963H | D165: GUIGNICOURT | E165: GORET Patrick | F165: CD02 | W165: N1 | X165: = | Y165: N1 | Z165: = | AA165: N1 | AB165: = | AC165: N1 np | AD165: = | AE165: N1 | AF165: = | AG165: N1 np | AH165: = | AI165: N1 | AJ165: 3ème Finale CD02 N1 2017 - 2018
A166: GOSSART | B166: Jean-Yves | C166: 017161B | D166: GRAVELINES | E166: GOSSART Jean-Yves | F166: CD59 | AG166: N1 | AH166: = | AI166: N1 | AJ166: 18ème Qualifications CD59 N1 2021-2022 / 68ème ranking national
A167: GREMAIN | B167: Gino | C167: 017226O | D167: WIZERNES | E167: GREMAIN Gino | F167: CD59 | G167: Masters | H167: = | I167: Masters | J167: = | K167: Masters | L167: = | M167: Masters | N167: = | O167: Masters | P167: ▼ | Q167: Masters | R167: = | S167: Masters | T167: ▼ | U167: N1 np | V167: = | W167: N1 np | X167: = | Y167: N1 np | Z167: = | AA167: N1 np | AB167: = | AC167: N1 np | AD167: = | AE167: N1 | AF167: = | AG167: N1 | AH167: = | AI167: N1 | AJ167: 47ème ranking national
A168: GROLLET | B168: Fabien | C168: 110544S | D168: VILLENEUVE D'ASCQ | E168: GROLLET Fabien | F168: CD59 | G168: N1 np | H168: = | I168: N1 | J168: = | K168: N1 np | L168: = | M168: N1 np | N168: = | O168: N1 np | P168: = | Q168: N1 | R168: = | S168: N1 np | T168: = | U168: N1 np | V168: = | W168: N1 np | X168: = | Y168: N1 np | Z168: = | AA168: N1 np | AB168: = | AC168: N1 np | AD168: = | AE168: N1 | AF168: = | AG168: N1 np | AH168: = | AI168: N1 | AJ168: 22ème Qualifications Ligue N1 2013-2014
A169: GROSS | B169: Xavier | C169: 155562P | D169: VILLERS ST PAUL | E169: GROSS Xavier | F169: CD60 | AA169: R1 | AB169: = | AC169: R1 np | AD169: = | AE169: R1 | AF169: = | AG169: R1 np | AH169: = | AI169: R1 | AJ169: 8ème Qualifications CD60 R1 2018-2019
A170: GUERIN | B170: Astrid | C170: 165938S | D170: MOREUIL | E170: GUERIN Astrid | F170: CD80 | AA170: R1 | AB170: = | AC170: R1 np | AD170: = | AE170: R1 | AF170: = | AG170: R1 | AH170: = | AI170: R1 | AJ170: 4ème finale CD80 R1 2021-2022 - 1ere finale CD80 Dames 2021-2022
A171: GUERIN | B171: Isabelle | C171: 159953M | D171: MOREUIL | E171: GUERIN Isabelle | F171: CD80 | W171: R1 | X171: = | Y171: R1 | Z171: = | AA171: R1 np | AB171: = | AC171: R1 np | AD171: = | AE171: R1 | AF171: = | AG171: R1 | AH171: = | AI171: R1 | AJ171: 4eme finale CD80 Dames 2021-2022
A172: GUERIN | B172: Régis | C172: 149894D | D172: MOREUIL | E172: GUERIN Régis | F172: CD80 | W172: N1 | X172: = | Y172: N1 | Z172: = | AA172: N1 | AB172: = | AC172: N1 | AD172: = | AE172: N1 | AF172: = | AG172: N1 | AH172: = | AI172: N1 | AJ172: 2ème Finale CD80 N1 2021-2022 / 24ème ranking national
A173: GUILBERT | B173: Raymond | C173: 016533X | D173: COURRIERES | E173: GUILBERT Raymond | F173: CD62 | O173: R1 | P173: = | Q173: R1 np | R173: = | S173: R1 np | T173: = | U173: R1 np | V173: = | W173: R1 np | X173: = | Y173: R1 np | Z173: = | AA173: R1 np | AB173: = | AC173: R1 np | AD173: = | AE173: R1 | AF173: = | AG173: R1 np | AH173: = | AI173: R1 | AJ173: xxème Qualifications CD62 R1 Artois 2012-2013
A174: GUILLEMANT | B174: Alexandre | C174: 016874A | D174: ANNOEULLIN | E174: GUILLEMANT Alexandre | F174: CD59 | G174: Masters | H174: = | I174: Masters | J174: = | K174: Masters | L174: = | M174: Masters | N174: = | O174: Masters | P174: = | Q174: Masters np | R174: ▼ | S174: N1 np | T174: = | U174: N1 np | V174: = | W174: N1 np | X174: = | Y174: N1 np | Z174: = | AA174: N1 np | AB174: = | AC174: N1 np | AD174: = | AE174: N1 | AF174: = | AG174: N1 np | AH174: = | AI174: N1 | AJ174: 2ème CF Masters 2012-2013
A175: GUILLEMANT | B175: David | C175: 016875B | D175: ANNOEULLIN | E175: GUILLEMANT David | F175: CD59 | G175: Masters | H175: = | I175: Masters | J175: = | K175: Masters | L175: = | M175: Masters | N175: = | O175: Masters | P175: = | Q175: Masters | R175: ▼ | S175: Masters | T175: = | U175: Masters | V175: = | W175: Masters | X175: = | Y175: Masters | Z175: = | AA175: Masters | AB175: ▼ | AC175: N1 | AD175: ▲ | AE175: Masters | AF175: = | AG175: Masters | AH175: = | AI175: Masters | AJ175: 6ème CF Master 2021-2022
A176: GUILLEMANT | B176: Jean-Marc | C176: 017025V | D176: ANNOEULLIN | E176: GUILLEMANT Jean-Marc | F176: CD59 | G176: N1 | H176: = | I176: N1 | J176: = | K176: N1 | L176: = | M176: N1 | N176: = | O176: N1 | P176: = | Q176: N1 np | R176: = | S176: N1 np | T176: = | U176: N1 np | V176: = | W176: N1 np | X176: = | Y176: N1 np | Z176: = | AA176: N1 np | AB176: = | AC176: N1 np | AD176: = | AE176: N1 | AF176: = | AG176: N1 np | AH176: = | AI176: N1 | AJ176: 17ème T5 National 2012-2013
A177: GUILLUY | B177: Jean-René | C177: 146929F | D177: VILLENEUVE D'ASCQ | E177: GUILLUY Jean-René | F177: CD59 | O177: R1 | P177: = | Q177: R1 np | R177: = | S177: R1 np | T177: = | U177: R1 np | V177: = | W177: R1 np | X177: = | Y177: R1 np | Z177: = | AA177: R2 np | AB177: = | AC177: N1 np | AD177: = | AE177: N1 | AF177: = | AG177: N1 np | AH177: = | AI177: N1 | AJ177: 34ème Qualifications Ligue N1 2012-2013
A178: HAZELAERE | B178: François | C178: 133095B | D178: CHAPELLE D'ARMENTIERES | E178: HAZELAERE François | F178: CD59 | AE178: R1 | AG178: R1 | AH178: = | AI178: R1 | AJ178: 22ème Qualifications R1 CD59 2021-2022
A179: HECQ | B179: Anthony | C179: 151267W | D179: VAUDESSON | E179: HECQ Anthony | F179: CD02 | Y179: R1 | Z179: = | AA179: R1 np | AB179: = | AC179: R1 np | AD179: = | AE179: R1 | AF179: = | AG179: R1 np | AH179: = | AI179: R1 | AJ179: 3ème finale CD02 R1 2017 - 2018
A180: HENNEUSE | B180: Patrick | C180: 016721D | D180: BRUAY SUR ESCAUT | E180: HENNEUSE Patrick | F180: CD59 | G180: R1 np | H180: = | I180: R1 | J180: ▲ | K180: N1 | L180: = | M180: N1 np | N180: = | O180: N1 | P180: = | Q180: N1 np | R180: = | S180: N1 np | T180: = | U180: N1 np | V180: = | W180: N1 np | X180: = | Y180: N1 np | Z180: = | AA180: N1 np | AB180: = | AC180: N1 np | AD180: = | AE180: N1 | AF180: = | AG180: N1 np | AH180: = | AI180: N1 | AJ180: 13ème Qualifications Ligue N1 2012-2013
A181: HENRY | B181: Tony | C181: 119963Z | D181: ABBEVILLE | E181: HENRY Tony | F181: CD80 | Y181: R1 | Z181: ▲ | AA181: N1 | AB181: = | AC181: N1 np | AD181: = | AE181: N1 | AF181: = | AG181: N1 | AH181: = | AI181: N1 | AJ181: 9ème Qualifications CD80 N1 2021-2022
A182: HERMANT | B182: Jacques | C182: 125113B | D182: CHALLANS | E182: HERMANT Jacques | F182: CD60 | W182: N1 | X182: = | Y182: N1 np | Z182: = | AA182: N1 np | AB182: = | AC182: N1 np | AD182: = | AE182: N1 | AF182: = | AG182: N1 np | AH182: = | AI182: N1 | AJ182: 13ème Qualifications CD60 2016 - 2017
A183: HERREBRECHT | B183: Emerick | C183: 136110A | D183: GRAVELINES | E183: HERREBRECHT Emerick | F183: CD59 | Q183: R1 | R183: = | S183: R1 | T183: = | U183: R1 | V183: = | W183: R1 | X183: ▲ | Y183: N1 | Z183: = | AA183: R1 | AB183: = | AC183: R1 | AD183: ▲ | AE183: N1 | AF183: = | AG183: N1 | AH183: = | AI183: N1 | AJ183: 4eme CF U21 2021-2022 / 95ème ranking national
A184: HERREBRECHT | B184: Erian | C184: 146733P | D184: GRAVELINES | E184: HERREBRECHT Erian | F184: CD59 | Q184: R1 | R184: = | S184: R1 | T184: = | U184: R1 | V184: ▲ | W184: N1 | X184: ▼ | Y184: R1 | Z184: ▲ | AA184: N1 | AB184: = | AC184: N1 | AD184: = | AE184: N1 | AF184: = | AG184: N1 np | AH184: = | AI184: N1 | AJ184: 6ème Finale CD59 N1 2019-2020 - 106ème classement ranking national 2019-2020
A185: HERREBRECHT | B185: Thierry | C185: 017224M | D185: GRAVELINES | E185: HERREBRECHT Thierry | F185: CD59 | G185: N1 | H185: ▲ | I185: Masters | J185: ▼ | K185: N1 | L185: ▲ | M185: Masters | N185: ▼ | O185: N1 | P185: = | Q185: N1 | R185: = | S185: Masters | T185: = | U185: Masters * | V185: ▼ | W185: N1 | X185: ▲ | Y185: Masters | Z185: = | AA185: Masters np | AB185: = | AC185: N1 | AD185: = | AE185: N1 | AF185: = | AG185: N1 np | AH185: = | AI185: N1 | AJ185: 3ème Finale CD59 N1 2019-2020
A186: HERSELIN | B186: Jean-Claude | C186: 136326I | D186: PONT DE METZ | E186: HERSELIN Jean-Claude | F186: CD80 | W186: R1 | X186: = | Y186: R1 | Z186: = | AA186: R1 | AB186: = | AC186: R1 np | AD186: = | AE186: R1 | AF186: = | AG186: R1 np | AH186: = | AI186: R1 | AJ186: 13ème Qualifications CD80 R1 2018-2019
A187: HERTOUX | B187: Didier | C187: 020497J | D187: BEAUVAIS | E187: HERTOUX Didier | F187: CD60 | Y187: R1 | Z187: = | AA187: R1 np | AB187: = | AC187: R1 | AD187: = | AE187: R1 | AF187: = | AG187: R1 | AH187: = | AI187: R1 | AJ187: 2eme Finale R1 CD60 2021-2022
A188: HILAIRE | B188: Jimmy | C188: 137050E | D188: LYON | E188: HILAIRE Jimmy | F188: CD59 | M188: R1 | N188: = | O188: R1 np | P188: = | Q188: R1 np | R188: = | S188: R1 np | T188: = | U188: R1 np | V188: = | W188: R1 np | X188: = | Y188: R1 np | Z188: = | AA188: R2 np | AB188: = | AC188: R1 np | AD188: = | AE188: R1 | AF188: = | AG188: R1 np | AH188: = | AI188: R1 | AJ188: 10ème Qualifications CD59 R1 2011-2012
A189: HINGRAND | B189: Tony | C189: 151434C | D189: GRAVELINES | E189: HINGRAND Tony | F189: CD59 | S189: R1 | T189: ▲ | U189: N1 | V189: = | W189: N1 np | X189: = | Y189: N1 np | Z189: = | AA189: R1 np | AB189: = | AC189: N1 np | AD189: = | AE189: N1 | AF189: = | AG189: N1 np | AH189: = | AI189: N1 | AJ189: 18ème Qualifications Ligue N1 2015-2016
A190: HOCHART | B190: James | C190: 127686A | D190: DENAIN | E190: HOCHART James | F190: CD59 | G190: R1 | H190: = | I190: R1 np | J190: = | K190: R1 | L190: = | M190: R1 | N190: = | O190: R1 | P190: = | Q190: R1 | R190: = | S190: R1 np | T190: = | U190: R1 | V190: = | W190: R1 np | X190: = | Y190: R1 np | Z190: = | AA190: R2 | AB190: = | AC190: R1 | AD190: = | AE190: R1 | AF190: = | AG190: R1 | AH190: = | AI190: R1 | AJ190: 6ème Finale CD59 R1 2021-2022
A191: HOLLEVILLE | B191: Bernard | C191: 129440M | D191: ESTAIRES | E191: HOLLEVILLE Bernard | F191: CD59 | AG191: R1 | AH191: = | AI191: R1 | AJ191: 20ème Qualifications CD59 N1 2021-2022
A192: HORNAIN | B192: Denis | C192: 016710S | D192: DENAIN | E192: HORNAIN Denis | F192: CD59 | G192: N1 | H192: = | I192: N1 | J192: = | K192: N1 | L192: = | M192: N1 np | N192: = | O192: N1 | P192: ▼ | Q192: R1 np | R192: = | S192: R1 np | T192: = | U192: R1 np | V192: = | W192: R1 np | X192: = | Y192: R1 np | Z192: = | AA192: R1 np | AB192: = | AC192: R1 | AD192: ▲ | AE192: N1 | AF192: = | AG192: N1 np | AH192: = | AI192: N1 | AJ192: 5ème Finale CD59 R1 2019-2020
A193: HULOT | B193: Sophie | C193: 133130K | D193: GRAVELINES | E193: HULOT Sophie | F193: CD59 | G193: R1 | H193: = | I193: R1 | J193: = | K193: R1 | L193: = | M193: R1 np | N193: = | O193: R1 np | P193: = | Q193: R1 np | R193: = | S193: R1 np | T193: = | U193: R1 np | V193: = | W193: R1 np | X193: = | Y193: R1 np | Z193: = | AA193: R2 np | AB193: = | AC193: R1 np | AD193: = | AE193: R1 | AF193: = | AG193: R1 np | AH193: = | AI193: R1 | AJ193: 12ème Qualifications CD59 R1 2010-2011
A194: INTROLIGATOR | B194: Gilles | C194: 017872K | D194: LAON | E194: INTROLIGATOR Gilles | F194: CD02 | W194: N1 np | X194: = | Y194: N1 np | Z194: = | AA194: N1 np | AB194: = | AC194: N1 np | AD194: = | AE194: N1 | AF194: = | AG194: N1 np | AH194: = | AI194: N1 | AJ194: 7ème CD02 N1 2015 - 2016
A195: JOLY | B195: Kenan | C195: 164983E | D195: ABBEVILLE | E195: JOLY Kenan | F195: CD80 | AA195: R1 | AB195: = | AC195: R1 np | AD195: = | AE195: R1 | AF195: = | AG195: R1 | AH195: ▲ | AI195: N1 | AJ195: 3ème Finale Ligue R1 2021-2022
A196: JONARD | B196: Hervé | C196: 020567B | D196: ALBERT | E196: JONARD Hervé | F196: CD80 | AG196: N1 np | AH196: = | AI196: N1 | AJ196: NC, N1 3B ==> N1 5Q
A197: JUBLOT | B197: Maxime | C197: 107058Q | D197: GRAVELINES | E197: JUBLOT Maxime | F197: CD59 | AC197: Masters | AD197: = | AE197: Masters | AF197: = | AG197: Masters | AH197: = | AI197: Masters | AJ197: 3ème ranking national
A198: KAYA | B198: Tugrul | C198: 130654E | D198: GRAVELINES | E198: KAYA Tugrul | F198: CD59 | G198: N1 np | H198: = | I198: N1 np | J198: = | K198: N1 | L198: = | M198: N1 | N198: = | O198: N1 np | P198: = | Q198: N1 np | R198: = | S198: N1 np | T198: = | U198: N1 np | V198: = | W198: N1 np | X198: = | Y198: N1 np | Z198: = | AA198: N1 np | AB198: = | AC198: N1 np | AD198: = | AE198: N1 | AF198: = | AG198: N1 np | AH198: = | AI198: N1 | AJ198: 13ème Qualifications Ligue N1 2011-2012
A199: KERKHOF | B199: Hervé | C199: 136114E | D199: GRAVELINES | E199: KERKHOF Hervé | F199: CD59 | S199: R1 | T199: ▲ | U199: N1 | V199: = | W199: N1 | X199: = | Y199: N1 | Z199: = | AA199: R1 | AB199: = | AC199: R1 | AD199: = | AE199: R1 | AF199: = | AG199: R1 | AH199: = | AI199: R1 | AJ199: 3ème Finale CD59 R1 2021-2022 / 113ème ranking national
A200: KOWALSKI | B200: Christian | C200: ? | D200: DIVION | E200: KOWALSKI Christian | F200: CD62 | K200: R1 | L200: = | M200: R1 | N200: = | O200: R1 | P200: = | Q200: R1 np | R200: = | S200: R1 np | T200: = | U200: R1 np | V200: = | W200: R1 np | X200: = | Y200: R1 np | Z200: = | AA200: R1 np | AB200: = | AC200: R1 np | AD200: = | AE200: R1 | AF200: = | AG200: R1 np | AH200: = | AI200: R1 | AJ200: 4ème Barrage Artois CD62 R1 2012-2013
... 176 more rows
